[Event "8th Montevideo Open 2025"]
[Site "Montevideo"]
[Date "2025.02.02"]
[Round "3.24"]
[White "Silva, Juliana Figueira The"]
[Black "Escofet, Jaime"]
[Result "0-1"]
[Annotator "TA"]
[ECO "A57"]
[WhiteElo "1807"]
[BlackElo "1951"]
[PlyCount "68"]
[EventDate "2025.02.01"]
[EventType "swiss"]
[EventCountry "URU"]
[SourceTitle "playchess.com"]
[Source "ChessBase"]
[SourceQuality "1"]
[TimeControl "5400+30"]

{[%evp 9,67,-39,-39,-47,-15,-12,0,-56,-48,-331,-39,-49,-53,-392,-392,-418,-395,-365,-363,-361,-352,-351,-342,-436,-330,-307,-312,-401,-224,-237,-161,-227,-221,-168,-161,-362,-49,-141,-180,-539,-225,-335,-119,-248,-235,-453,-469,-449,-451,-738,-737,-693,-679,-692,-550,-714,-719,-29991,-29992,-29999]} 1. d4 {[%emt 0:00:01][%cal Bd2d4,Bd4d5][%mdl 32]} Nf6 {[%emt 0:01:07]} 2. c4 {[%emt 0:00:07]} c5 {[%emt 0:00:06]} 3. d5 {[%emt 0:00:04]} b5 {[%emt 0:00:05]} 4. Qc2 {[%emt 0:00:30]} Na6 {[%emt 0:00:15]} 5. Bd2 {[%emt 0:07:13]} bxc4 {[%emt 0:00:47]} 6. e4 {[%emt 0:00:54][%cal Oa2a3] A57: Benko/Volga Gambit.} e6 {[%emt 0:00:30]} 7. dxe6 {[%emt 0:00:30]} fxe6 {[%emt 0:00:30]} 8. Bxc4 {[%emt 0:00:30]} (8. e5 $1 $11) 8... Bb7 $15 {[%emt 0:04:08]} 9. Bd3 {[%emt 0:11:28][%mdl 8192]} (9. Nc3 $15) 9... Nb4 $146 {[%emt 0:03:13]} (9... c4 $19 10. Qxc4 Rc8) (9... c4 10. Qxc4 Rc8 11. Qd4 Bc5 12. Qa4 Qb6 13. Nh3 Nb4 14. Bxb4 Bxb4+ 15. Ke2 Nxe4 {0-1 Lubczynski,R (2084)-Wieclaw,M (2145) Poznan op-A 2003 (3)}) 10. Bxb4 cxb4 {[%emt 0:04:38]} 11. e5 $2 {[%emt 0:14:16][%mdl 8192]} (11. Nd2 $15) 11... Rc8 $19 {[%emt 0:00:30]} (11... Bxg2 12. Bg6+ Ke7 13. exf6+ Kxf6 14. Be4 $19) 12. Bg6+ {[%emt 0:08:16]} hxg6 {[%emt 0:00:30]} 13. Qxg6+ {[%emt 0:00:30]} Ke7 {[%emt 0:00:30]} 14. exf6+ {[%emt 0:00:30]} gxf6 {[%emt 0:00:30]} 15. Nd2 {[%emt 0:00:30]} Qa5 {[%emt 0:06:14][%cal Ob4b3]} 16. Ngf3 {[%emt 0:14:19]} Bh6 {[%emt 0:00:30] Active counter play!} 17. Nb3 {[%emt 0:00:30]} Qa6 {[%emt 0:00:30]} 18. Qg4 {[%emt 0:00:30]} Rc4 {[%emt 0:00:30]} (18... Rhg8 $142 19. Qxb4+ d6) 19. Nfd4 {[%emt 0:00:30]} Bd5 {[%emt 0:00:30]} 20. O-O {[%emt 0:00:30]} (20. Qe2) 20... Rcc8 $1 {[%emt 0:00:30]} 21. g3 {[%emt 0:00:30]} Rcg8 $1 $36 {[%emt 0:00:30][%mdl 2048] White is under strong pressure.} 22. Qd1 {[%emt 0:00:30] [#]} (22. Qe2 {keeps fighting.} Qxe2 23. Nxe2) 22... Bg5 $2 {[%emt 0:00:30] White is weak on the light squares} ({Better is} 22... Bf4 $1 $19 23. Nf3 Qb6) 23. Nf3 {[%emt 0:00:30]} ({White should play} 23. Nf5+ $1 $15 Kf7 (23... exf5 $2 24. Qxd5 Qc6 25. Rfe1+ Kf8 26. Rad1 $18) 24. Qd4) 23... Bf4 $17 {[%emt 0:00:30]} 24. Qd4 $2 {[%emt 0:00:30]} (24. Nbd4) 24... Bd6 {[%emt 0:00:30] This pair of bishops is nice.} (24... Qd6 $142 {[%cal Rf4g3]} 25. Nbd2 Bxd2) 25. Qe3 {[%emt 0:00:30] [#]} (25. Nbd2 $142 Qb6 (25... Bxa2 $2 26. Ne4 $18) 26. Qxb6 axb6 27. Rfd1) 25... Rg4 $2 {[%emt 0:00:30]} (25... f5 $1 $19 {[%cal Rf5f4] and Black stays clearly on top. ...f4 is the strong threat.} 26. Nbd4 f4 (26... Bxa2 $2 27. Nxf5+ Kf6 28. Nxd6 $18)) 26. Rfe1 {[%emt 0:00:30]} (26. Rad1 $17 Qb6 27. Qxb6 axb6 28. Nfd4) 26... Re4 $19 {[%emt 0:00:30]} 27. Qd2 {[%emt 0:00:30]} (27. Qxe4 Bxe4 28. Rxe4) 27... Rxe1+ {[%emt 0:00:30]} 28. Nxe1 {[%emt 0:00:30]} Bxb3 {[%emt 0:00:30]} 29. Qd4 {[%emt 0:00:30]} (29. Nc2 $142 Bxc2 (29... Bxa2 $2 30. Nxb4 Qb6 31. Nxa2 $19) 30. Qxc2) 29... Bd5 {[%emt 0:35:41]} 30. Qg4 {[%emt 0:17:45] Inhibits Qe2.} Rf8 {[%emt 0:00:30]} (30... Bxa2 $2 {loses.} 31. Qg7+ Ke8 32. Qxh8+ Kf7 33. Qh7+ Ke8 34. Nf3 $18) 31. Ng2 {[%emt 0:00:30]} Qc4 {[%emt 0:00:30]} 32. Qg7+ {[%emt 0:00:30]} Rf7 {[%emt 0:00:30][%cal Oc4e4] ( -> ...Qe4!)} 33. Qg8 {[%emt 0:00:30]} Qe4 {[%emt 0:00:30][%csl Gd5][%cal Re4g2]} 34. Nh4 {[%emt 0:00:30]} Qh1# {[%emt 0:00:30] Weighted Error Value: White=1.19/Black=0.84  Loses game:     	White=2     	---        Missed win:     	---       	Black=3      Mistake:       	White=9     	Black=2      Inaccurate:     	White=1     	Black=2      OK:         	White=5     	Black=7      Best:        	White=3     	Black=1      Strong:       	---       	Black=2} 0-1

[Event "8th Montevideo Open 2025"]
[Site "Montevideo"]
[Date "2025.02.04"]
[Round "4.1"]
[White "Hoffman, Alejandro"]
[Black "Shoker, Samy"]
[Result "1/2-1/2"]
[Annotator "TA"]
[ECO "E91"]
[WhiteElo "2368"]
[BlackElo "2446"]
[PlyCount "57"]
[EventDate "2025.02.01"]
[EventType "swiss"]
[EventCountry "URU"]
[SourceTitle "playchess.com"]
[Source "ChessBase"]
[SourceQuality "1"]
[TimeControl "5400+30"]

{[%evp 16,57,56,56,77,53,97,98,114,95,99,102,107,77,91,88,99,97,87,0,99,0,82,0,139,115,177,168,164,160,147,129,137,138,147,108,97,0,131,0,75,0,139,0]} 1. d4 {[%emt 0:03:12]} g6 {[%emt 0:00:15]} 2. c4 {[%emt 0:00:59]} Bg7 {[%emt 0:01:01]} 3. Nc3 {[%emt 0:00:44]} d6 {[%emt 0:00:35]} 4. e4 {[%emt 0:03:03]} Nf6 {[%emt 0:00:12]} 5. h3 {[%emt 0:01:30]} O-O {[%emt 0:03:43]} 6. Be3 {[%emt 0:00:24]} c6 {[%emt 0:02:36]} 7. Nf3 {[%emt 0:04:18]} Na6 $1 {[%emt 0:08:23][%mdl 4] is more profitable than 7...a6 at the moment.} 8. Be2 {[%emt 0:02:23]} Nc7 {[%emt 0:11:13]} 9. O-O {[%emt 0:11:53]} a6 {[%emt 0:04:36] E91: King's Indian: Classical: 6 Be2, unusual replies including 6...c5 and 6...Bg4.} 10. d5 $146 {[%emt 0:36:00]} (10. Rc1 Nd7 11. d5 c5 12. a4 a5 13. Qd2 b6 14. Nh2 Ne8 15. f4 Bxc3 16. Qxc3 {1-0 Dimitrov,D (2191)-Stary,L (1891) Pardubice Czech Tintera op 30th 2019 (2)}) 10... Nd7 {[%emt 0:12:11]} 11. Qd2 {[%emt 0:02:15]} Re8 {[%emt 0:03:45] White is better.} 12. Rad1 {[%emt 0:02:06]} cxd5 {[%emt 0:03:59]} 13. cxd5 {[%emt 0:00:38]} b5 {[%emt 0:01:44]} 14. a3 {[%emt 0:02:19]} Bb7 {[%emt 0:01:30]} 15. Nd4 {[%emt 0:01:17]} Nf6 {[%emt 0:01:55]} 16. Bf3 {[%emt 0:05:50]} Nd7 {[%emt 0:02:05]} 17. Be2 {[%emt 0:03:10]} Nf6 $1 {[%emt 0:05:38]} 18. Bf3 {[%emt 0:00:07]} Nd7 $1 {[%emt 0:04:34][%cal Bf6d7,Bd7c5,Bc5e4][%mdl 32]} 19. Be2 {[%emt 0:00:07]} (19. Nb3 $16) 19... Qb8 {[%emt 0:09:47]} (19... Nf6 $1 $11) 20. Nb3 {[%emt 0:02:16]} Bc8 {[%emt 0:01:03] [#]} (20... e6 $16 {was called for.}) 21. Na5 $1 $18 {[%emt 0:00:24]} Nc5 {[%emt 0:06:23]} 22. b4 {[%emt 0:05:28]} Bxc3 {[%emt 0:02:52]} 23. Qxc3 {[%emt 0:00:05]} Nxe4 {[%emt 0:00:46]} 24. Qd4 {[%emt 0:05:08]} f5 {[%emt 0:02:16] Black is weak on the dark squares} 25. Nc6 {[%emt 0:04:45][%mdl 1024] White has strong compensation.} Qb7 {[%emt 0:00:00]} 26. Na5 {[%emt 0:00:51] White has more active pieces. The black rooks are passive.} Qb8 {[%emt 0:00:22]} 27. Nc6 {[%emt 0:00:27]} (27. Bf3 $142 {[%cal Oe3h6] And now Bh6! would win.} e5 28. dxe6) 27... Qb7 $16 {[%emt 0:00:03]} 28. Na5 {[%emt 0:00:06]} (28. Rc1 $142) 28... Qb8 $1 {[%emt 0:01:03]} 29. Nc6 {[%emt 0:00:36] Weighted Error Value: White=0.44/Black=0.14 (very precise)   Mistake:       	White=4     	Black=2      Inaccurate:     	---       	Black=1      OK:         	White=5     	Black=8      Best:        	---       	Black=2      Strong:       	---       	Black=3} (29. Bf3 $16 e5 30. dxe6) 1/2-1/2

[Event "8th Montevideo Open 2025"]
[Site "Montevideo"]
[Date "2025.02.04"]
[Round "4.2"]
[White "Coro, Lucas"]
[Black "Villegas, Franco"]
[Result "1-0"]
[Annotator "RC"]
[ECO "B52"]
[WhiteElo "2415"]
[BlackElo "2325"]
[PlyCount "95"]
[EventDate "2025.02.01"]
[EventType "swiss"]
[EventCountry "URU"]
[SourceTitle "playchess.com"]
[Source "ChessBase"]
[SourceQuality "1"]
[TimeControl "5400+30"]

1. e4 {[%emt 0:03:08]} c5 {[%emt 0:00:18]} 2. Nf3 {[%emt 0:00:15]} d6 {[%emt 0:00:31]} 3. Bb5+ {[%emt 0:04:21]} Bd7 {[%emt 0:00:21]} 4. c4 {[%emt 0:01:19]} Nf6 {[%emt 0:03:10]} 5. Nc3 {[%emt 0:01:08]} g6 {[%emt 0:01:44]} 6. O-O {[%emt 0:04:24]} Bg7 {[%emt 0:00:52]} 7. d4 {[%emt 0:03:38]} cxd4 {[%emt 0:00:34]} 8. Nxd4 {[%emt 0:00:50]} Nc6 {[%emt 0:01:17]} 9. Nf3 {[%emt 0:06:18]} O-O {[%emt 0:00:45]} 10. h3 {[%emt 0:00:56]} Na5 {[%emt 0:05:11]} 11. Qd3 {[%emt 0:04:07]} Rc8 {[%emt 0:02:29]} 12. Bg5 {[%emt 0:09:43]} Be6 {[%emt 0:09:04]} 13. b3 {[%emt 0:20:59]} a6 {[%emt 0:30:53]} 14. Ba4 {[%emt 0:00:12]} b5 {[%emt 0:17:02]} 15. cxb5 {[%emt 0:00:14]} Nd7 {[%emt 0:00:05]} 16. Rac1 {[%emt 0:02:26]} Nc5 {[%emt 0:00:04]} 17. Qe3 {[%emt 0:01:50]} Nxa4 {[%emt 0:09:52]} 18. Nxa4 {[%emt 0:00:12]} axb5 {[%emt 0:00:45]} 19. Nb6 {[%emt 0:04:41]} Rb8 {[%emt 0:03:00]} 20. Nd5 {[%emt 0:00:53]} f6 {[%emt 0:02:15]} 21. Bh6 {[%emt 0:02:13]} Bd7 {[%emt 0:02:06]} 22. Bxg7 {[%emt 0:01:03]} Kxg7 {[%emt 0:00:03]} 23. Nd4 {[%emt 0:06:07]} Rb7 {[%emt 0:01:31]} 24. Qc3 {[%emt 0:02:37]} Kf7 {[%emt 0:00:43]} 25. Rfd1 {[%emt 0:02:01]} e6 {[%emt 0:03:25]} 26. Nb4 {[%emt 0:00:59]} Qb6 {[%emt 0:00:44]} 27. Qe3 {[%emt 0:00:14]} Rc8 {[%emt 0:03:08]} 28. Rxc8 {[%emt 0:03:54]} Bxc8 {[%emt 0:00:04]} 29. Rc1 {[%emt 0:00:32]} Bd7 {[%emt 0:02:19]} 30. Qc3 {[%emt 0:01:08]} Ra7 {[%emt 0:00:25]} 31. Nf3 {[%emt 0:01:23]} Ra8 {[%emt 0:00:23]} 32. Rd1 {[%emt 0:00:10]} Rd8 {[%emt 0:00:52]} 33. Qd2 {[%emt 0:01:52]} Nb7 {[%emt 0:00:11]} 34. Nd3 {[%emt 0:00:48]} Bc6 {[%emt 0:00:34]} 35. Qh6 {[%emt 0:00:29]} Kg8 {[%emt 0:00:14]} 36. Nf4 {[%emt 0:00:15]} Nc5 {[%emt 0:01:05]} 37. Nd4 {[%emt 0:03:04]} Bd7 {[%emt 0:00:25]} 38. Nxg6 {[%emt 0:01:35]} hxg6 {[%emt 0:00:08]} 39. Qxg6+ {[%emt 0:00:06]} Kf8 {[%emt 0:00:01]} 40. Qxf6+ {[%emt 0:00:11]} Ke8 {[%emt 0:00:03]} 41. b4 {[%emt 0:00:32]} Nxe4 {[%emt 0:01:09]} 42. Qg6+ {[%emt 0:00:08]} Ke7 {[%emt 0:00:03]} 43. Qxe4 {[%emt 0:00:14]} Rf8 {[%emt 0:00:26]} 44. Qh4+ {[%emt 0:01:11]} Ke8 {[%emt 0:01:04]} 45. Nf3 {[%emt 0:00:23]} e5 {[%emt 0:00:34]} 46. Qh6 {[%emt 0:01:17]} Ke7 {[%emt 0:00:17]} 47. Nxe5 {[%emt 0:02:01]} Rxf2 {[%emt 0:01:05]} 48. Nxd7 {[%emt 0:00:17]} 1-0

[Event "8th Montevideo Open 2025"]
[Site "Montevideo"]
[Date "2025.02.04"]
[Round "4.3"]
[White "Larrea, Manuel"]
[Black "Villca, Julian"]
[Result "0-1"]
[Annotator "TA"]
[ECO "C54"]
[WhiteElo "2265"]
[BlackElo "2413"]
[PlyCount "104"]
[EventDate "2025.02.01"]
[EventType "swiss"]
[EventCountry "URU"]
[SourceTitle "playchess.com"]
[Source "ChessBase"]
[SourceQuality "1"]
[TimeControl "5400+30"]

{[%evp 9,104,15,10,10,10,9,10,14,11,0,21,14,18,31,16,10,17,18,23,0,-2,-48,-28,-43,-47,-40,0,0,0,0,2,9,0,0,0,-23,4,0,3,-35,-31,-17,-26,-32,-21,-15,-7,-13,12,8,10,0,0,-9,0,0,0,-8,0,-18,0,0,0,-26,0,0,6,0,7,7,15,6,8,9,18,0,14,0,22,26,29,33,33,7,113,105,122,121,278,285,888,268,269,257,193,-405,-403]} 1. e4 {[%emt 0:00:02]} e5 {[%emt 0:16:35]} 2. Nf3 {[%emt 0:03:46]} Nc6 {[%emt 0:00:06]} 3. Bc4 {[%emt 0:00:40]} Bc5 {[%emt 0:00:10]} 4. c3 {[%emt 0:01:04]} Nf6 {[%emt 0:00:08]} 5. d3 {[%emt 0:01:12]} a5 {[%emt 0:00:05]} 6. O-O {[%emt 0:00:25] Threatening d4.} d6 {[%emt 0:00:05]} 7. Re1 {[%emt 0:08:17]} O-O {[%emt 0:00:23]} 8. Nbd2 {[%emt 0:02:58] The position is equal.} Ng4 {[%emt 0:00:21]} 9. Rf1 {[%emt 0:00:53]} Ba7 {[%emt 0:00:10]} 10. h3 {[%emt 0:00:32]} Nf6 {[%emt 0:00:05]} 11. Re1 {[%emt 0:01:41]} Be6 {[%emt 0:02:29]} 12. Bb5 {[%emt 0:06:19]} Ne7 {[%emt 0:00:08]} 13. d4 {[%emt 0:00:19]} c6 {[%emt 0:00:06]} 14. Bf1 {[%emt 0:01:14]} Ng6 {[%emt 0:00:09]} 15. g3 {[%emt 0:00:26]} (15. b3 $11 {was preferrable.}) 15... a4 {[%emt 0:10:25]} 16. Bg2 {[%emt 0:04:02]} Re8 {[%emt 0:12:34]} 17. Nf1 {[%emt 0:04:10]} Qa5 {[%emt 0:07:51]} 18. Bg5 {[%emt 0:07:07]} Nd7 {[%emt 0:04:07]} 19. Be3 {[%emt 0:00:40]} d5 {[%emt 0:03:50]} 20. Ng5 {[%emt 0:18:42]} dxe4 {[%emt 0:01:50]} 21. Nxe6 {[%emt 0:04:36]} Rxe6 {[%emt 0:00:10]} 22. Bxe4 {[%emt 0:02:04]} exd4 {[%emt 0:00:49]} 23. Bxd4 {[%emt 0:00:19] A strong pair of Bishops.} Rd6 {[%emt 0:07:49]} 24. b4 {[%emt 0:06:09]} Qd8 {[%emt 0:01:28]} 25. Ne3 {[%emt 0:08:37][%cal Oe3f5] [#] Strongly threatening Nf5!} (25. Qxa4 $2 {is the wrong capture.} Bxd4 26. Qb3 Ba7 $19) 25... Bxd4 {[%emt 0:00:32]} 26. cxd4 {[%emt 0:00:06]} Nf6 {[%emt 0:00:11][%csl LRd4,LRe4]} 27. Nf5 {[%emt 0:00:48]} Rd7 {[%emt 0:00:36]} 28. Bg2 {[%emt 0:02:58]} Ne7 {[%emt 0:01:58]} 29. Nxe7+ {[%emt 0:02:04]} Rxe7 {[%emt 0:00:14]} 30. Rxe7 {[%emt 0:00:40]} Qxe7 {[%emt 0:00:05]} 31. a3 {[%emt 0:00:10]} Qd7 {[%emt 0:00:51]} 32. Rc1 {[%emt 0:00:51]} g6 {[%emt 0:04:43]} 33. Rc3 {[%emt 0:03:15]} Nd5 {[%emt 0:02:38]} 34. Rd3 {[%emt 0:01:43]} Nb6 {[%emt 0:00:16]} 35. Qc2 {[%emt 0:03:35]} Qf5 {[%emt 0:13:21]} 36. Qe2 {[%emt 0:02:58]} Qb5 {[%emt 0:01:13]} 37. Bf1 {[%emt 0:02:09]} Nd5 {[%emt 0:01:32]} 38. Qe5 {[%emt 0:00:35]} Qb6 {[%emt 0:00:43]} 39. h4 {[%emt 0:00:33][%cal Bh3h4,Bh4h5][%mdl 32]} Rd8 {[%emt 0:02:40]} 40. h5 {[%emt 0:00:28] h6 would now be deadly.} Qc7 {[%emt 0:00:36]} 41. h6 {[%emt 0:01:00]} f6 {[%emt 0:00:27]} 42. Qe1 {[%emt 0:00:33]} Qe7 {[%emt 0:02:33]} 43. Qd1 {[%emt 0:00:27]} Qf8 {[%emt 0:03:40]} 44. Qxa4 {[%emt 0:00:16] b5 is the strong threat.} Qxh6 {[%emt 0:00:40]} 45. b5 {[%emt 0:00:22]} Qc1 {[%emt 0:00:20]} 46. bxc6 {[%emt 0:00:22]} bxc6 {[%emt 0:00:13]} (46... Qxc6 $11 {remains equal.} 47. Qd1 b5) 47. Rd1 $16 {[%emt 0:00:50]} Qc3 {[%emt 0:00:29]} 48. Bc4 {[%emt 0:00:27]} Kg7 $2 {[%emt 0:01:27]} (48... Rc8 $16) 49. Qxc6 $18 {[%emt 0:00:22]} Ne7 $2 {[%emt 0:00:28]} (49... Qf3 50. Rb1 Kh6) 50. Qe6 $2 {[%emt 0:00:40]} (50. Qc7 Re8 51. d5) 50... Nf5 {[%emt 0:00:22]} 51. Kg2 {[%emt 0:00:45]} Rf8 {[%emt 0:00:46] [#] Dodges Qf7+} 52. d5 $4 {[%emt 0:00:47][%mdl 8192]} Qxc4 {[%emt 0:00:06] Weighted Error Value: White=0.35/Black=0.15 (very precise) .  Missed win:     	White=1     	---        Mistake:       	White=2     	Black=3      Inaccurate:     	White=3     	Black=3      OK:         	White=15    	Black=16     Best:        	White=2     	Black=2} 0-1

[Event "8th Montevideo Open 2025"]
[Site "Montevideo"]
[Date "2025.02.04"]
[Round "4.4"]
[White "Vazquez, Facundo"]
[Black "De Dovitiis, Alejo"]
[Result "1-0"]
[Annotator "RC"]
[ECO "A41"]
[WhiteElo "2404"]
[BlackElo "2225"]
[PlyCount "87"]
[EventDate "2025.02.01"]
[EventType "swiss"]
[EventCountry "URU"]
[SourceTitle "playchess.com"]
[Source "ChessBase"]
[SourceQuality "1"]
[TimeControl "5400+30"]

1. d4 {[%emt 1:31:00]} d6 {[%emt 0:18:30]} 2. Nf3 {[%emt 0:00:00]} Bg4 {[%emt 0:00:14]} 3. c4 {[%emt 0:00:00]} Nd7 4. Nc3 {[%emt 0:01:30]} g6 {[%emt 1:13:46]} 5. h3 {[%emt 0:00:00]} Bxf3 {[%emt 0:00:00]} 6. exf3 {[%emt 0:00:00]} Bg7 {[%emt 0:00:00]} 7. Be3 {[%emt 0:00:00]} c5 {[%emt 0:00:00]} 8. Be2 {[%emt 0:00:00]} cxd4 {[%emt 0:00:00]} 9. Bxd4 {[%emt 0:00:00]} Bxd4 {[%emt 0:00:00]} 10. Qxd4 {[%emt 0:00:00]} Ngf6 {[%emt 0:00:00]} 11. O-O {[%emt 0:00:00]} Qb6 {[%emt 0:00:00]} 12. Qd2 {[%emt 0:00:00]} Nc5 {[%emt 0:00:00]} 13. Rfe1 {[%emt 0:00:00]} O-O {[%emt 0:00:00]} 14. Rad1 {[%emt 0:00:00]} Rad8 {[%emt 0:00:00]} 15. Qc2 {[%emt 0:00:00]} e5 {[%emt 0:00:00]} 16. a3 {[%emt 0:00:00]} Ne6 {[%emt 0:00:00]} 17. b4 {[%emt 0:00:00]} Rc8 {[%emt 0:00:00]} 18. Qb2 {[%emt 0:00:00]} Rfd8 {[%emt 0:00:00]} 19. Bf1 {[%emt 0:00:00]} a6 {[%emt 0:00:00]} 20. Rd2 {[%emt 0:00:00]} Qc7 {[%emt 0:00:00]} 21. a4 {[%emt 0:00:00]} h5 {[%emt 0:00:00]} 22. h4 {[%emt 0:00:00]} Qe7 {[%emt 0:00:00]} 23. g3 {[%emt 0:00:00]} Qf8 {[%emt 0:00:00]} 24. a5 {[%emt 0:00:00]} Nd4 {[%emt 0:00:00]} 25. Kg2 {[%emt 0:00:00]} Qg7 {[%emt 0:00:00]} 26. Na4 {[%emt 0:00:00]} Nd7 {[%emt 0:00:00]} 27. Bd3 {[%emt 0:00:00]} Qf6 {[%emt 0:00:00]} 28. Re3 {[%emt 0:00:00]} g5 {[%emt 0:00:00]} 29. Nc3 {[%emt 0:00:00]} gxh4 {[%emt 0:00:00]} 30. Nd5 {[%emt 0:00:00]} Qg5 {[%emt 0:00:00]} 31. f4 {[%emt 0:00:00]} Qg4 {[%emt 0:00:00]} 32. Be2 {[%emt 0:00:00]} Nxe2 {[%emt 0:00:00]} 33. Rdxe2 {[%emt 0:00:00]} Rxc4 {[%emt 0:00:00]} 34. fxe5 {[%emt 0:00:00]} Qd4 {[%emt 0:00:00]} 35. Ne7+ {[%emt 0:00:00]} Kf8 {[%emt 0:00:00]} 36. exd6 {[%emt 0:00:00]} Qxb2 {[%emt 0:00:00]} 37. Rxb2 {[%emt 0:00:00]} Nf6 {[%emt 0:00:00]} 38. Nf5 {[%emt 0:00:00]} hxg3 {[%emt 0:00:00]} 39. fxg3 {[%emt 0:00:00]} Nd5 {[%emt 0:00:00]} 40. Re7 {[%emt 0:00:00]} Rb8 {[%emt 0:00:00]} 41. Rf2 {[%emt 0:00:00]} Rxb4 {[%emt 0:00:00]} 42. Nh6 {[%emt 0:00:00]} f6 {[%emt 0:00:00]} 43. Rf7+ {[%emt 0:00:00]} Ke8 {[%emt 0:00:00]} 44. Re2+ {[%emt 0:00:00]} 1-0

[Event "8th Montevideo Open 2025"]
[Site "Montevideo"]
[Date "2025.02.04"]
[Round "4.5"]
[White "Coppola, Claudio"]
[Black "Estrada Nieto, Julian"]
[Result "1-0"]
[Annotator "RC"]
[ECO "C68"]
[WhiteElo "2220"]
[BlackElo "2195"]
[PlyCount "99"]
[EventDate "2025.02.01"]
[EventType "swiss"]
[EventCountry "URU"]
[SourceTitle "playchess.com"]
[Source "ChessBase"]
[SourceQuality "1"]
[TimeControl "5400+30"]

1. e4 {[%emt 0:08:24]} e5 {[%emt 0:00:21]} 2. Nf3 {[%emt 0:00:11]} Nc6 {[%emt 0:00:05]} 3. Bb5 {[%emt 0:00:06]} a6 {[%emt 0:00:05]} 4. Bxc6 {[%emt 0:00:08]} dxc6 {[%emt 0:00:05]} 5. O-O {[%emt 0:00:10]} Bg4 {[%emt 0:00:29]} 6. h3 {[%emt 0:00:52]} Bh5 {[%emt 0:01:10]} 7. g4 {[%emt 0:07:29]} Bg6 {[%emt 0:00:05]} 8. Nxe5 {[%emt 0:00:09]} Qh4 {[%emt 0:00:15]} 9. Qf3 {[%emt 0:00:13]} f6 {[%emt 0:00:34]} 10. Nxg6 {[%emt 0:03:42]} hxg6 {[%emt 0:00:06]} 11. Kg2 {[%emt 0:00:04]} g5 {[%emt 0:05:57]} 12. d3 {[%emt 0:00:35]} Ne7 {[%emt 0:08:06]} 13. Rh1 {[%emt 0:00:04]} Qh7 {[%emt 0:02:20]} 14. Kf1 {[%emt 0:00:02]} Qg8 {[%emt 0:03:42]} 15. e5 {[%emt 0:09:02]} Rh6 {[%emt 0:14:17]} 16. Nc3 {[%emt 0:04:58]} O-O-O {[%emt 0:03:31]} 17. Bd2 {[%emt 0:06:14]} Kb8 {[%emt 0:10:34]} 18. Re1 {[%emt 0:04:39]} Nd5 {[%emt 0:05:28]} 19. Nxd5 {[%emt 0:08:47]} cxd5 {[%emt 0:00:12]} 20. e6 {[%emt 0:04:48]} Be7 {[%emt 0:05:17]} 21. Kg2 {[%emt 0:00:36]} g6 {[%emt 0:02:50]} 22. a3 {[%emt 0:02:38]} Ka7 {[%emt 0:16:12]} 23. c4 {[%emt 0:02:05]} c6 {[%emt 0:01:24]} 24. Ba5 {[%emt 0:07:24]} b6 {[%emt 0:00:37]} 25. Bc3 {[%emt 0:00:13]} f5 {[%emt 0:03:21]} 26. gxf5 {[%emt 0:08:27]} gxf5 {[%emt 0:02:50]} 27. Qxf5 {[%emt 0:00:02]} g4 {[%emt 0:01:03]} 28. h4 {[%emt 0:01:25]} d4 {[%emt 0:01:57]} 29. Qf7 {[%emt 0:04:22]} Qf8 {[%emt 0:02:17]} 30. Qxf8 {[%emt 0:00:58]} Rxf8 {[%emt 0:00:24]} 31. Bxd4 {[%emt 0:01:19]} Rd8 {[%emt 0:00:44]} 32. Re4 {[%emt 0:00:38]} Rd6 {[%emt 0:01:11]} 33. c5 {[%emt 0:01:02]} Rdxe6 {[%emt 0:00:10]} 34. cxb6+ {[%emt 0:00:08]} Kb7 {[%emt 0:00:04]} 35. Rhe1 {[%emt 0:00:42]} Rxe4 {[%emt 0:00:29]} 36. Rxe4 {[%emt 0:00:02]} Bxh4 {[%emt 0:00:22]} 37. Rxg4 {[%emt 0:00:21]} Bf6 {[%emt 0:01:41]} 38. Be3 {[%emt 0:00:48]} Rh7 {[%emt 0:00:46]} 39. b4 {[%emt 0:00:32]} Rd7 {[%emt 0:00:08]} 40. a4 {[%emt 0:04:44]} a5 {[%emt 0:02:03]} 41. bxa5 {[%emt 0:01:45]} Bc3 {[%emt 0:00:05]} 42. a6+ {[%emt 0:01:17]} Kxa6 {[%emt 0:00:03]} 43. Rc4 {[%emt 0:00:16]} Rxd3 {[%emt 0:00:46]} 44. Rxc6 {[%emt 0:00:25]} Ba5 {[%emt 0:00:38]} 45. Rc7 {[%emt 0:01:14]} Bxb6 {[%emt 0:01:19]} 46. Rc6 {[%emt 0:00:12]} Rxe3 {[%emt 0:00:13]} 47. fxe3 {[%emt 0:00:14]} Ka5 {[%emt 0:00:03]} 48. Rxb6 {[%emt 0:00:22]} Kxb6 {[%emt 0:00:12]} 49. Kf3 {[%emt 0:00:07]} Ka5 {[%emt 0:00:05]} 50. Ke4 {[%emt 0:00:08]} 1-0